[Event "Early-Titled-Tuesday-Blitz-March-19-2024"]
[Site "Chess.com"]
[Date "2024.03.19"]
[Round "7"]
[White "EternalNight8"]
[Black "hitaman"]
[Result "0-1"]
[WhiteElo "2495"]
[BlackElo "2688"]
[TimeControl "180+1"]
[EndTime "9:19:31 PDT"]
[Termination "hitaman won by resignation"]

1. d4 {[%clk 0:03:00.9]} 1... d5 {[%clk 0:02:59.4]} 2. c4 {[%clk 0:03:00.8]}
2... e6 {[%clk 0:02:59.1]} 3. Nf3 {[%clk 0:03:01.3]} 3... Nf6 {[%clk 0:02:59.3]}
4. g3 {[%clk 0:03:01.3]} 4... Nc6 {[%clk 0:02:59.5]} 5. Bg2 {[%clk 0:02:58.1]}
5... Bd6 {[%clk 0:03:00]} 6. O-O {[%clk 0:02:57.6]} 6... O-O {[%clk 0:03:00.7]}
7. Nc3 {[%clk 0:02:53.3]} 7... dxc4 {[%clk 0:02:52.9]} 8. e4 {[%clk 0:02:50.1]}
8... e5 {[%clk 0:02:53]} 9. d5 {[%clk 0:02:46.6]} 9... Na5 {[%clk 0:02:46.6]}
10. Nd2 {[%clk 0:02:28.3]} 10... b6 {[%clk 0:02:44.5]} 11. Qe2 {[%clk
0:02:21.8]} 11... Bg4 {[%clk 0:02:32.7]} 12. f3 {[%clk 0:02:20.3]} 12... Bc8
{[%clk 0:02:31.9]} 13. f4 {[%clk 0:01:58.8]} 13... c6 {[%clk 0:02:09.3]} 14. Kh1
{[%clk 0:01:35.3]} 14... Bg4 {[%clk 0:02:03.1]} 15. Qe1 {[%clk 0:01:20.6]} 15...
cxd5 {[%clk 0:02:03.2]} 16. exd5 {[%clk 0:01:09.4]} 16... exf4 {[%clk
0:02:02.8]} 17. gxf4 {[%clk 0:01:08.9]} 17... Re8 {[%clk 0:02:00]} 18. Qg3
{[%clk 0:01:08.6]} 18... Qd7 {[%clk 0:01:57.8]} 19. Nde4 {[%clk 0:01:02.4]}
19... Nxe4 {[%clk 0:01:56.2]} 20. Nxe4 {[%clk 0:01:03.3]} 20... Nb7 {[%clk
0:01:41]} 21. h3 {[%clk 0:01:02.2]} 21... Rxe4 {[%clk 0:01:37]} 22. Bxe4 {[%clk
0:01:01.1]} 22... Bf5 {[%clk 0:01:36.5]} 23. Rg1 {[%clk 0:00:57]} 23... g6
{[%clk 0:01:36.3]} 24. Bxf5 {[%clk 0:00:49]} 24... Qxf5 {[%clk 0:01:35.4]} 25.
Qg2 {[%clk 0:00:48.6]} 25... Re8 {[%clk 0:01:18.3]} 26. Bd2 {[%clk 0:00:47.1]}
26... Qd3 {[%clk 0:01:19]} 27. Bc3 {[%clk 0:00:40.7]} 27... Re2 {[%clk
0:01:16.1]} 28. Qf1 {[%clk 0:00:27.6]} 28... Bxf4 {[%clk 0:01:10]} 29. Rg2
{[%clk 0:00:26.9]} 29... Qxh3+ {[%clk 0:01:09.2]} 30. Kg1 {[%clk 0:00:26.5]}
30... Be3+ {[%clk 0:01:05.8]} 31. Rf2 {[%clk 0:00:24.3]} 31... Rxf2 {[%clk
0:01:04.4]} 32. Qxh3 {[%clk 0:00:23.6]} 32... Rf3+ {[%clk 0:01:01.4]} 33. Kg2
{[%clk 0:00:22.6]} 33... Rxh3 {[%clk 0:01:00.9]} 34. Kxh3 {[%clk 0:00:23.5]}
34... f5 {[%clk 0:00:56.9]} 35. Rd1 {[%clk 0:00:20.9]} 35... Nd6 {[%clk
0:00:53.7]} 36. Be5 {[%clk 0:00:20.3]} 36... Bc5 {[%clk 0:00:52]} 37. b3 {[%clk
0:00:18]} 37... cxb3 {[%clk 0:00:47]} 38. axb3 {[%clk 0:00:18.9]} 38... Kf7
{[%clk 0:00:46.3]} 39. Bxd6 {[%clk 0:00:17.7]} 39... Bxd6 {[%clk 0:00:46.6]} 40.
Re1 {[%clk 0:00:18.3]} 40... a5 {[%clk 0:00:44.2]} 41. Re6 {[%clk 0:00:18.7]}
41... Bc5 {[%clk 0:00:45]} 42. Rc6 {[%clk 0:00:18.4]} 42... Ke7 {[%clk
0:00:43.7]} 43. Rc7+ {[%clk 0:00:18.6]} 43... Kd6 {[%clk 0:00:43.8]} 44. Rxh7
{[%clk 0:00:19.5]} 44... Kxd5 {[%clk 0:00:38]} 45. Rg7 {[%clk 0:00:19.8]} 45...
Kd4 {[%clk 0:00:36.7]} 46. Rxg6 {[%clk 0:00:20.1]} 46... f4 {[%clk 0:00:36.7]}
47. Kg4 {[%clk 0:00:20.1]} 47... Kc3 {[%clk 0:00:36.8]} 48. Kxf4 {[%clk
0:00:18.8]} 48... Kxb3 {[%clk 0:00:36.9]} 49. Ke4 {[%clk 0:00:18.8]} 49... a4
{[%clk 0:00:34.6]} 50. Rg3+ {[%clk 0:00:18.6]} 50... Kb2 {[%clk 0:00:34]} 51.
Rg2+ {[%clk 0:00:15.7]} 51... Kb1 {[%clk 0:00:34.5]} 52. Kd3 {[%clk 0:00:12.2]}
52... a3 {[%clk 0:00:30.5]} 53. Rh2 {[%clk 0:00:10.8]} 53... a2 {[%clk
0:00:26.4]} 54. Rh1+ {[%clk 0:00:11.1]} 54... Kb2 {[%clk 0:00:25.5]} 55. Rh2+
{[%clk 0:00:11.4]} 55... Kb3 {[%clk 0:00:25.9]} 56. Rh1 {[%clk 0:00:11.2]} 56...
b5 {[%clk 0:00:25.3]} 57. Kd2 {[%clk 0:00:08.4]} 57... Kb2 {[%clk 0:00:24.9]}
58. Kd3 {[%clk 0:00:06.5]} 58... a1=Q {[%clk 0:00:24.4]} 59. Rxa1 {[%clk
0:00:06.3]} 59... Kxa1 {[%clk 0:00:24.5]} 60. Kc3 {[%clk 0:00:06.4]} 60... Ka2
{[%clk 0:00:24.6]} 61. Kc2 {[%clk 0:00:06.1]} 61... b4 {[%clk 0:00:24.6]} 0-1

[Event "Early-Titled-Tuesday-Blitz-March-19-2024"]
[Site "Chess.com"]
[Date "2024.03.19"]
[Round "7"]
[White "Hikaru"]
[Black "Sam_ChessMood"]
[Result "1-0"]
[WhiteElo "3281"]
[BlackElo "2945"]
[TimeControl "180+1"]
[EndTime "9:19:32 PDT"]
[Termination "Hikaru won by resignation"]

1. Nf3 {[%clk 0:03:00.9]} 1... d5 {[%clk 0:02:59.6]} 2. e3 {[%clk 0:02:57.2]}
2... c5 {[%clk 0:02:57.7]} 3. b3 {[%clk 0:02:48]} 3... Nc6 {[%clk 0:02:57.6]} 4.
Bb5 {[%clk 0:02:47.9]} 4... f6 {[%clk 0:02:56.1]} 5. c4 {[%clk 0:02:41.9]} 5...
a6 {[%clk 0:02:54.1]} 6. Bxc6+ {[%clk 0:02:38.3]} 6... bxc6 {[%clk 0:02:55]} 7.
d4 {[%clk 0:02:39]} 7... cxd4 {[%clk 0:02:34.9]} 8. exd4 {[%clk 0:02:31.7]} 8...
e6 {[%clk 0:02:35.1]} 9. O-O {[%clk 0:02:31]} 9... Bd6 {[%clk 0:02:34.9]} 10.
Ba3 {[%clk 0:02:30.5]} 10... Ne7 {[%clk 0:02:34.9]} 11. Bxd6 {[%clk 0:02:29.1]}
11... Qxd6 {[%clk 0:02:35]} 12. Re1 {[%clk 0:02:29]} 12... O-O {[%clk
0:02:34.8]} 13. Qc1 {[%clk 0:02:29.5]} 13... Ng6 {[%clk 0:02:24]} 14. Qa3 {[%clk
0:02:29.2]} 14... Qb8 {[%clk 0:02:04.1]} 15. Nc3 {[%clk 0:02:27.8]} 15... Ra7
{[%clk 0:02:04.4]} 16. Re3 {[%clk 0:02:19.3]} 16... Nf4 {[%clk 0:02:00.4]} 17.
g3 {[%clk 0:02:17.6]} 17... Nh3+ {[%clk 0:01:56.7]} 18. Kg2 {[%clk 0:02:16.8]}
18... Ng5 {[%clk 0:01:46.7]} 19. Nxg5 {[%clk 0:02:04.2]} 19... fxg5 {[%clk
0:01:47.6]} 20. Na4 {[%clk 0:02:01.3]} 20... Raf7 {[%clk 0:01:45.9]} 21. Rf1
{[%clk 0:02:01.1]} 21... Qc7 {[%clk 0:01:19.2]} 22. Re5 {[%clk 0:01:56.7]} 22...
Qd8 {[%clk 0:01:11.2]} 23. Qc1 {[%clk 0:01:54.4]} 23... Rf5 {[%clk 0:00:54.5]}
24. Qe3 {[%clk 0:01:53.6]} 24... Qf6 {[%clk 0:00:47]} 25. Nc5 {[%clk 0:01:50.3]}
25... h6 {[%clk 0:00:43.3]} 26. f3 {[%clk 0:01:43.9]} 26... a5 {[%clk
0:00:40.1]} 27. Rf2 {[%clk 0:01:34.2]} 27... Kh8 {[%clk 0:00:32.3]} 28. a3
{[%clk 0:01:27.5]} 28... Kg8 {[%clk 0:00:31.3]} 29. g4 {[%clk 0:01:22.5]} 29...
Rxe5 {[%clk 0:00:29.2]} 30. Qxe5 {[%clk 0:01:20.3]} 30... Qf4 {[%clk 0:00:29]}
31. Nd3 {[%clk 0:01:07.1]} 31... Qf6 {[%clk 0:00:22.3]} 32. Nc5 {[%clk
0:01:04.7]} 32... Qf4 {[%clk 0:00:19.9]} 33. Qxf4 {[%clk 0:01:00.1]} 33... Rxf4
{[%clk 0:00:19.2]} 34. Rd2 {[%clk 0:01:00.1]} 34... Kf8 {[%clk 0:00:19.6]} 35.
cxd5 {[%clk 0:00:38.6]} 35... exd5 {[%clk 0:00:18.2]} 36. h3 {[%clk 0:00:39.1]}
36... h5 {[%clk 0:00:15.6]} 37. Na4 {[%clk 0:00:33.2]} 37... Ke7 {[%clk
0:00:15.4]} 38. Nc5 {[%clk 0:00:31.9]} 38... Kd6 {[%clk 0:00:14.9]} 39. b4
{[%clk 0:00:31]} 39... axb4 {[%clk 0:00:14.5]} 40. axb4 {[%clk 0:00:31.9]} 40...
h4 {[%clk 0:00:14.4]} 41. Kf2 {[%clk 0:00:30.9]} 41... Be6 {[%clk 0:00:10.2]}
42. Ke3 {[%clk 0:00:30.2]} 42... Rf8 {[%clk 0:00:09.2]} 43. Ra2 {[%clk
0:00:29.6]} 43... Rb8 {[%clk 0:00:09.2]} 44. Ra4 {[%clk 0:00:26.7]} 44... Re8
{[%clk 0:00:03.7]} 45. Kf2 {[%clk 0:00:26.2]} 45... Bf7 {[%clk 0:00:02.5]} 46.
Ra7 {[%clk 0:00:20]} 46... Re7 {[%clk 0:00:02.9]} 47. Ra6 {[%clk 0:00:20.6]}
47... Bg6 {[%clk 0:00:02.8]} 48. b5 {[%clk 0:00:20.1]} 48... Rc7 {[%clk
0:00:03]} 49. b6 {[%clk 0:00:20.5]} 1-0

[Event "Early-Titled-Tuesday-Blitz-March-19-2024"]
[Site "Chess.com"]
[Date "2024.03.19"]
[Round "7"]
[White "ljuks68"]
[Black "Louis-Paulsen-Fan"]
[Result "1-0"]
[WhiteElo "2456"]
[BlackElo "2279"]
[TimeControl "180+1"]
[EndTime "9:19:32 PDT"]
[Termination "ljuks68 won by resignation"]

1. e4 {[%clk 0:02:58.3]} 1... Nf6 {[%clk 0:03:00.2]} 2. e5 {[%clk 0:02:58.3]}
2... Nd5 {[%clk 0:03:00.4]} 3. c4 {[%clk 0:02:59]} 3... Nb6 {[%clk 0:03:00.5]}
4. d4 {[%clk 0:02:59.5]} 4... d6 {[%clk 0:03:00.7]} 5. f4 {[%clk 0:03:00.1]}
5... dxe5 {[%clk 0:03:00.9]} 6. fxe5 {[%clk 0:03:00.6]} 6... c5 {[%clk
0:03:01.5]} 7. d5 {[%clk 0:03:00.7]} 7... e6 {[%clk 0:03:02.1]} 8. Nc3 {[%clk
0:03:01.2]} 8... exd5 {[%clk 0:03:02.4]} 9. cxd5 {[%clk 0:03:01.8]} 9... Qh4+
{[%clk 0:03:02.6]} 10. g3 {[%clk 0:03:00.7]} 10... Qd4 {[%clk 0:03:02.7]} 11.
Bg2 {[%clk 0:02:01.6]} 11... Qxd1+ {[%clk 0:02:55.8]} 12. Kxd1 {[%clk
0:01:58.5]} 12... Bg4+ {[%clk 0:02:51.1]} 13. Nge2 {[%clk 0:01:58.1]} 13... Na6
{[%clk 0:02:50.3]} 14. a3 {[%clk 0:01:51.6]} 14... O-O-O {[%clk 0:02:45]} 15.
Kc2 {[%clk 0:01:51.8]} 15... Bxe2 {[%clk 0:02:40.6]} 16. Nxe2 {[%clk 0:01:50.8]}
16... Nxd5 {[%clk 0:02:40.8]} 17. Bg5 {[%clk 0:01:47.3]} 17... Be7 {[%clk
0:02:37]} 18. Bd2 {[%clk 0:01:37.8]} 18... f6 {[%clk 0:02:26]} 19. e6 {[%clk
0:01:09.9]} 19... c4 {[%clk 0:02:23.5]} 20. Rad1 {[%clk 0:00:49]} 20... Nc5
{[%clk 0:02:15]} 21. Ba5 {[%clk 0:00:48]} 21... Nb6 {[%clk 0:02:10]} 22. Nf4
{[%clk 0:00:43.1]} 22... g5 {[%clk 0:02:00]} 23. Bxb6 {[%clk 0:00:41.6]} 23...
Rxd1 {[%clk 0:01:46.1]} 24. Rxd1 {[%clk 0:00:38.9]} 24... gxf4 {[%clk
0:01:45.1]} 25. Bxc5 {[%clk 0:00:38.2]} 25... Bxc5 {[%clk 0:01:43.8]} 26. Rd7
{[%clk 0:00:36.6]} 26... fxg3 {[%clk 0:01:39.7]} 27. Bxb7+ {[%clk 0:00:34.9]}
27... Kb8 {[%clk 0:01:39.9]} 28. hxg3 {[%clk 0:00:34.6]} 28... Rg8 {[%clk
0:00:58.6]} 29. e7 {[%clk 0:00:27]} 29... Bxe7 {[%clk 0:00:58.7]} 30. Rxe7
{[%clk 0:00:26.9]} 30... Rxg3 {[%clk 0:00:58.8]} 31. Bd5 {[%clk 0:00:25.3]}
31... h5 {[%clk 0:00:43.9]} 32. Rh7 {[%clk 0:00:25.2]} 32... c3 {[%clk
0:00:34.8]} 33. bxc3 {[%clk 0:00:23.3]} 33... a5 {[%clk 0:00:33]} 34. Rxh5
{[%clk 0:00:21.7]} 34... Kc7 {[%clk 0:00:33.3]} 35. a4 {[%clk 0:00:11.4]} 35...
Kd6 {[%clk 0:00:26.5]} 36. Ba8 {[%clk 0:00:09.5]} 36... Ke6 {[%clk 0:00:22]} 37.
Rxa5 {[%clk 0:00:09.4]} 37... f5 {[%clk 0:00:22.5]} 38. Rd5 {[%clk 0:00:09]}
38... Rg8 {[%clk 0:00:20]} 39. Ra5 {[%clk 0:00:08.9]} 39... f4 {[%clk
0:00:19.5]} 40. Kd3 {[%clk 0:00:09]} 40... Rc8 {[%clk 0:00:16.7]} 41. Ra6+
{[%clk 0:00:07.2]} 41... Ke5 {[%clk 0:00:16.2]} 42. Ra5+ {[%clk 0:00:06.7]}
42... Ke6 {[%clk 0:00:15.4]} 43. Be4 {[%clk 0:00:06.3]} 43... Rd8+ {[%clk
0:00:12.9]} 44. Ke2 {[%clk 0:00:06.1]} 44... Rc8 {[%clk 0:00:13.2]} 45. Kd2
{[%clk 0:00:05.9]} 45... Rd8+ {[%clk 0:00:12.2]} 46. Bd3 {[%clk 0:00:06.4]}
46... f3 {[%clk 0:00:11.6]} 47. Rf5 {[%clk 0:00:06.6]} 47... Rxd3+ {[%clk
0:00:03.2]} 48. Kxd3 {[%clk 0:00:06.9]} 48... Kxf5 {[%clk 0:00:03.8]} 49. Ke3
{[%clk 0:00:07.6]} 49... Kg4 {[%clk 0:00:04.4]} 50. Kf2 {[%clk 0:00:07.8]} 1-0

[Event "Early-Titled-Tuesday-Blitz-March-19-2024"]
[Site "Chess.com"]
[Date "2024.03.19"]
[Round "7"]
[White "Njal28"]
[Black "ChessQueen"]
[Result "1-0"]
[WhiteElo "3054"]
[BlackElo "2756"]
[TimeControl "180+1"]
[EndTime "9:19:33 PDT"]
[Termination "Njal28 won by resignation"]

1. d4 {[%clk 0:03:00.9]} 1... Nf6 {[%clk 0:02:59.3]} 2. c4 {[%clk 0:03:01.4]}
2... e6 {[%clk 0:02:59.7]} 3. Nc3 {[%clk 0:03:02]} 3... Bb4 {[%clk 0:02:59.3]}
4. e3 {[%clk 0:03:02.7]} 4... b6 {[%clk 0:02:58.7]} 5. a3 {[%clk 0:03:02.5]}
5... Bxc3+ {[%clk 0:02:57.5]} 6. bxc3 {[%clk 0:03:03.4]} 6... Nc6 {[%clk
0:02:58]} 7. Ne2 {[%clk 0:03:03.3]} 7... Ba6 {[%clk 0:02:54.2]} 8. Ng3 {[%clk
0:03:03.7]} 8... Na5 {[%clk 0:02:54.4]} 9. e4 {[%clk 0:03:03]} 9... d6 {[%clk
0:02:51.5]} 10. Bd3 {[%clk 0:03:00]} 10... Qd7 {[%clk 0:02:50.9]} 11. Bg5 {[%clk
0:02:57.4]} 11... Bxc4 {[%clk 0:02:45.3]} 12. O-O {[%clk 0:02:57.7]} 12... Qb5
{[%clk 0:02:27]} 13. Bxc4 {[%clk 0:02:54.1]} 13... Nxc4 {[%clk 0:02:27.1]} 14.
e5 {[%clk 0:02:47.5]} 14... dxe5 {[%clk 0:02:19.6]} 15. Bxf6 {[%clk 0:02:47.8]}
15... gxf6 {[%clk 0:02:17.5]} 16. Qf3 {[%clk 0:02:48.3]} 16... O-O-O {[%clk
0:02:11.1]} 17. Qxf6 {[%clk 0:02:46.2]} 17... exd4 {[%clk 0:02:08.7]} 18. cxd4
{[%clk 0:02:47.1]} 18... Nd6 {[%clk 0:01:55.6]} 19. Rac1 {[%clk 0:02:44.7]}
19... Kb8 {[%clk 0:01:52.4]} 20. Rc2 {[%clk 0:02:37]} 20... Rhg8 {[%clk
0:01:46.7]} 21. Rfc1 {[%clk 0:02:36.6]} 21... Rd7 {[%clk 0:01:45.8]} 22. Qh6
{[%clk 0:02:34.5]} 22... Qd3 {[%clk 0:01:41.3]} 23. Rc3 {[%clk 0:02:27]} 23...
Qxd4 {[%clk 0:01:36]} 24. Qxh7 {[%clk 0:02:25.9]} 24... Rh8 {[%clk 0:01:29.6]}
25. Qc2 {[%clk 0:02:18.2]} 25... Nb5 {[%clk 0:01:24.1]} 26. Rb3 {[%clk
0:02:15.7]} 26... Qd5 {[%clk 0:01:22.5]} 27. Qb2 {[%clk 0:01:42.1]} 27... Nd4
{[%clk 0:01:22.4]} 28. Rd3 {[%clk 0:01:42.1]} 28... e5 {[%clk 0:01:20.6]} 29.
Rcd1 {[%clk 0:01:32]} 29... Rg8 {[%clk 0:01:15.6]} 30. a4 {[%clk 0:01:24.2]}
30... f6 {[%clk 0:01:13.2]} 31. a5 {[%clk 0:01:16.1]} 31... Qxa5 {[%clk
0:01:09.3]} 32. Ra1 {[%clk 0:01:16.7]} 32... Qd5 {[%clk 0:00:59.1]} 33. Rda3
{[%clk 0:01:16.9]} 33... Nb5 {[%clk 0:00:57]} 34. Rb3 {[%clk 0:01:15.4]} 34...
Nd6 {[%clk 0:00:51.6]} 35. Qc2 {[%clk 0:01:08.1]} 35... Nb7 {[%clk 0:00:44.5]}
36. Rba3 {[%clk 0:01:06.4]} 36... a5 {[%clk 0:00:44]} 37. h4 {[%clk 0:01:06]}
37... e4 {[%clk 0:00:40.5]} 38. Qxe4 {[%clk 0:00:58.6]} 38... Qc5 {[%clk
0:00:33]} 39. h5 {[%clk 0:00:50.1]} 39... Rd4 {[%clk 0:00:31.4]} 40. Qe3 {[%clk
0:00:35.6]} 40... f5 {[%clk 0:00:27.1]} 41. Nxf5 {[%clk 0:00:28]} 41... Qd5
{[%clk 0:00:27.5]} 42. Ng3 {[%clk 0:00:26.2]} 42... Rd1+ {[%clk 0:00:27.6]} 43.
Rxd1 {[%clk 0:00:25.8]} 43... Qxd1+ {[%clk 0:00:28.5]} 44. Kh2 {[%clk
0:00:26.3]} 44... Rg4 {[%clk 0:00:29]} 45. Qe7 {[%clk 0:00:21.5]} 45... Qd4
{[%clk 0:00:25.3]} 46. Kh3 {[%clk 0:00:17.5]} 46... Rg8 {[%clk 0:00:21.1]} 47.
Rf3 {[%clk 0:00:17.5]} 47... a4 {[%clk 0:00:19.4]} 48. Rf8+ {[%clk 0:00:16.6]}
48... Rxf8 {[%clk 0:00:20]} 49. Qxf8+ {[%clk 0:00:17.5]} 49... Ka7 {[%clk
0:00:19.9]} 50. h6 {[%clk 0:00:17.9]} 50... Qd7+ {[%clk 0:00:18.7]} 51. Kh2
{[%clk 0:00:17.5]} 51... Nc5 {[%clk 0:00:19]} 52. Qg7 {[%clk 0:00:16.5]} 52...
Qd8 {[%clk 0:00:17.4]} 53. h7 {[%clk 0:00:16.2]} 53... Qh4+ {[%clk 0:00:14.3]}
54. Kg1 {[%clk 0:00:16.7]} 54... Ne6 {[%clk 0:00:12.4]} 55. h8=Q {[%clk
0:00:16.4]} 55... Qc4 {[%clk 0:00:11]} 56. Qgg8 {[%clk 0:00:10.7]} 1-0

[Event "Early-Titled-Tuesday-Blitz-March-19-2024"]
[Site "Chess.com"]
[Date "2024.03.19"]
[Round "7"]
[White "KNVB"]
[Black "viktorskliarov"]
[Result "1-0"]
[WhiteElo "2822"]
[BlackElo "2594"]
[TimeControl "180+1"]
[EndTime "9:19:37 PDT"]
[Termination "KNVB won by resignation"]

1. e4 {[%clk 0:03:00.9]} 1... c5 {[%clk 0:02:59.9]} 2. d3 {[%clk 0:03:00.5]}
2... Nc6 {[%clk 0:03:00]} 3. Nd2 {[%clk 0:03:01.4]} 3... g6 {[%clk 0:03:00.3]}
4. g3 {[%clk 0:03:01.6]} 4... Bg7 {[%clk 0:03:00.7]} 5. Bg2 {[%clk 0:02:59.3]}
5... e6 {[%clk 0:03:01.2]} 6. Ngf3 {[%clk 0:02:52.7]} 6... Nge7 {[%clk
0:03:01.5]} 7. h4 {[%clk 0:02:51.2]} 7... d5 {[%clk 0:02:55.3]} 8. h5 {[%clk
0:02:48.8]} 8... Qc7 {[%clk 0:02:42.6]} 9. Nf1 {[%clk 0:02:02.2]} 9... Bd7
{[%clk 0:02:29.8]} 10. h6 {[%clk 0:01:29.7]} 10... Bf6 {[%clk 0:02:29]} 11. Ne3
{[%clk 0:01:29.9]} 11... Ne5 {[%clk 0:00:43.7]} 12. Nxe5 {[%clk 0:01:22.7]}
12... Bxe5 {[%clk 0:00:43.7]} 13. Ng4 {[%clk 0:00:55.6]} 13... f5 {[%clk
0:00:30.2]} 14. Nxe5 {[%clk 0:00:27.9]} 14... Qxe5 {[%clk 0:00:31.1]} 15. c3
{[%clk 0:00:03.5]} 15... fxe4 {[%clk 0:00:21.6]} 16. Bf4 {[%clk 0:00:02]} 16...
Qf6 {[%clk 0:00:19.9]} 17. dxe4 {[%clk 0:00:02.1]} 17... O-O-O {[%clk
0:00:18.7]} 18. e5 {[%clk 0:00:01.3]} 18... Qf7 {[%clk 0:00:17.8]} 19. Qd2
{[%clk 0:00:01.4]} 19... Bb5 {[%clk 0:00:17.7]} 20. Bg5 {[%clk 0:00:01.8]} 20...
Rd7 {[%clk 0:00:17.6]} 21. O-O-O {[%clk 0:00:02.1]} 21... Nf5 {[%clk 0:00:17.6]}
22. g4 {[%clk 0:00:02.1]} 22... Ne7 {[%clk 0:00:17.5]} 23. Rh3 {[%clk
0:00:02.5]} 23... Nc6 {[%clk 0:00:17.7]} 24. Rf3 {[%clk 0:00:02.9]} 24... Qe8
{[%clk 0:00:17.9]} 25. Bf6 {[%clk 0:00:02.8]} 25... Rf8 {[%clk 0:00:17.6]} 26.
Re3 {[%clk 0:00:02.2]} 26... d4 {[%clk 0:00:17.9]} 27. Re4 {[%clk 0:00:02.3]}
27... dxc3 {[%clk 0:00:17.8]} 28. Qxc3 {[%clk 0:00:02.8]} 28... Rxd1+ {[%clk
0:00:17.9]} 29. Kxd1 {[%clk 0:00:03.7]} 29... Qd7+ {[%clk 0:00:18.3]} 30. Kc1
{[%clk 0:00:04.1]} 30... b6 {[%clk 0:00:18.7]} 31. Re1 {[%clk 0:00:04.3]} 31...
Nd4 {[%clk 0:00:19]} 32. Kb1 {[%clk 0:00:03.5]} 32... Bc6 {[%clk 0:00:19.2]} 33.
Bxc6 {[%clk 0:00:03]} 33... Qxc6 {[%clk 0:00:19.6]} 34. a3 {[%clk 0:00:03.3]}
34... Kb7 {[%clk 0:00:19.8]} 35. f4 {[%clk 0:00:03]} 35... Rf7 {[%clk
0:00:20.2]} 36. Rd1 {[%clk 0:00:02.7]} 36... Rd7 {[%clk 0:00:20.5]} 37. Ka2
{[%clk 0:00:02.3]} 37... Qe4 {[%clk 0:00:20.7]} 38. Qd3 {[%clk 0:00:01.7]} 38...
Qd5+ {[%clk 0:00:21]} 39. Kb1 {[%clk 0:00:02.4]} 39... c4 {[%clk 0:00:18.7]} 40.
Qd2 {[%clk 0:00:02.1]} 40... Qe4+ {[%clk 0:00:18.8]} 41. Ka2 {[%clk 0:00:02.8]}
41... Rd5 {[%clk 0:00:18.5]} 42. Qc3 {[%clk 0:00:03]} 42... Nb3 {[%clk
0:00:18.5]} 43. Rxd5 {[%clk 0:00:02.8]} 43... Qxd5 {[%clk 0:00:18.4]} 44. Qe1
{[%clk 0:00:02.7]} 44... b5 {[%clk 0:00:18.5]} 45. f5 {[%clk 0:00:02.9]} 45...
gxf5 {[%clk 0:00:19]} 46. gxf5 {[%clk 0:00:03.8]} 46... exf5 {[%clk 0:00:15.4]}
47. e6 {[%clk 0:00:04.1]} 47... c3 {[%clk 0:00:15.9]} 48. Bxc3 {[%clk
0:00:03.3]} 48... Nc5+ {[%clk 0:00:15]} 49. Kb1 {[%clk 0:00:02.6]} 49... Nxe6
{[%clk 0:00:15.5]} 50. Qf1 {[%clk 0:00:01.8]} 50... Qe4+ {[%clk 0:00:15.7]} 51.
Ka1 {[%clk 0:00:02.1]} 51... a6 {[%clk 0:00:16.4]} 52. Qg1 {[%clk 0:00:02]}
52... f4 {[%clk 0:00:16.7]} 53. Qg8 {[%clk 0:00:02]} 53... f3 {[%clk 0:00:16.9]}
54. Qf7+ {[%clk 0:00:02.6]} 54... Kc6 {[%clk 0:00:17.3]} 55. Qe8+ {[%clk
0:00:02.8]} 55... Kd5 {[%clk 0:00:17.3]} 56. Qa8+ {[%clk 0:00:02.8]} 56... Kd6
{[%clk 0:00:13.4]} 57. Qxe4 {[%clk 0:00:03.7]} 1-0

[Event "Early-Titled-Tuesday-Blitz-March-19-2024"]
[Site "Chess.com"]
[Date "2024.03.19"]
[Round "7"]
[White "NelsonLinda"]
[Black "stollenmonster"]
[Result "1-0"]
[WhiteElo "2672"]
[BlackElo "2888"]
[TimeControl "180+1"]
[EndTime "9:19:37 PDT"]
[Termination "NelsonLinda won by checkmate"]

1. Nf3 {[%clk 0:03:00.9]} 1... Nf6 {[%clk 0:02:59.6]} 2. b3 {[%clk 0:03:01.3]}
2... e6 {[%clk 0:03:00.1]} 3. Bb2 {[%clk 0:03:01.9]} 3... d5 {[%clk 0:03:00.6]}
4. e3 {[%clk 0:02:59.1]} 4... Be7 {[%clk 0:03:01]} 5. Be2 {[%clk 0:02:58.9]}
5... O-O {[%clk 0:03:01.5]} 6. O-O {[%clk 0:02:59]} 6... b6 {[%clk 0:03:02.2]}
7. d4 {[%clk 0:02:57.8]} 7... Bb7 {[%clk 0:03:02.7]} 8. c4 {[%clk 0:02:57.6]}
8... c5 {[%clk 0:03:02.3]} 9. dxc5 {[%clk 0:02:55.5]} 9... Bxc5 {[%clk
0:03:02.7]} 10. Nbd2 {[%clk 0:02:51.9]} 10... Nbd7 {[%clk 0:02:54.4]} 11. Rc1
{[%clk 0:02:50.3]} 11... Rc8 {[%clk 0:02:52.5]} 12. Rc2 {[%clk 0:02:49.1]} 12...
Qe7 {[%clk 0:02:51.8]} 13. Qa1 {[%clk 0:02:47.2]} 13... Rfd8 {[%clk 0:02:48.5]}
14. cxd5 {[%clk 0:02:23.9]} 14... Bxd5 {[%clk 0:02:45.5]} 15. Rfc1 {[%clk
0:02:23.4]} 15... Bb7 {[%clk 0:02:35.4]} 16. Nf1 {[%clk 0:02:13.2]} 16... Qf8
{[%clk 0:02:28.3]} 17. Ng3 {[%clk 0:02:12.2]} 17... Ne4 {[%clk 0:02:17.4]} 18.
Nh5 {[%clk 0:01:59.8]} 18... f6 {[%clk 0:02:17.1]} 19. Bc4 {[%clk 0:01:55.2]}
19... Qf7 {[%clk 0:02:09.8]} 20. Nf4 {[%clk 0:01:53.7]} 20... Nf8 {[%clk
0:02:09.7]} 21. a3 {[%clk 0:01:50.1]} 21... a5 {[%clk 0:02:01.6]} 22. Nd3 {[%clk
0:01:38.6]} 22... Bd6 {[%clk 0:01:39.1]} 23. Nf4 {[%clk 0:01:37.5]} 23... Bxf4
{[%clk 0:01:29.6]} 24. exf4 {[%clk 0:01:37.4]} 24... Qg6 {[%clk 0:01:30.1]} 25.
Ne1 {[%clk 0:01:04.2]} 25... Nd2 {[%clk 0:00:51.2]} 26. Bd4 {[%clk 0:00:50.4]}
26... Rxc4 {[%clk 0:00:41.7]} 27. Rxc4 {[%clk 0:00:31.6]} 27... Nxb3 {[%clk
0:00:38]} 28. Qb2 {[%clk 0:00:12.2]} 28... Nxc1 {[%clk 0:00:38.5]} 29. Rxc1
{[%clk 0:00:10.9]} 29... Qe4 {[%clk 0:00:25.2]} 30. Bxb6 {[%clk 0:00:08.8]}
30... Rd5 {[%clk 0:00:21]} 31. f3 {[%clk 0:00:07.5]} 31... Qxf4 {[%clk
0:00:17.6]} 32. Bc7 {[%clk 0:00:06.9]} 32... Qe3+ {[%clk 0:00:14.9]} 33. Kh1
{[%clk 0:00:06.4]} 33... Ba6 {[%clk 0:00:10.1]} 34. Bb6 {[%clk 0:00:04.8]} 34...
Qf4 {[%clk 0:00:09.4]} 35. Qc3 {[%clk 0:00:01.7]} 35... Qd2 {[%clk 0:00:07.6]}
36. Qxd2 {[%clk 0:00:01.5]} 36... Rxd2 {[%clk 0:00:07.8]} 37. Bxa5 {[%clk
0:00:02.1]} 37... Ra2 {[%clk 0:00:07.1]} 38. Bb4 {[%clk 0:00:02.4]} 38... Ng6
{[%clk 0:00:05]} 39. Nc2 {[%clk 0:00:02.3]} 39... e5 {[%clk 0:00:04.5]} 40. Ne3
{[%clk 0:00:01.7]} 40... Nf4 {[%clk 0:00:05.2]} 41. Ng4 {[%clk 0:00:01.6]} 41...
Kf7 {[%clk 0:00:05.3]} 42. Ne3 {[%clk 0:00:01.7]} 42... h5 {[%clk 0:00:04.9]}
43. g3 {[%clk 0:00:02.3]} 43... Ne2 {[%clk 0:00:04.9]} 44. Rd1 {[%clk 0:00:02]}
44... h4 {[%clk 0:00:04.7]} 45. Rd7+ {[%clk 0:00:02.1]} 45... Ke6 {[%clk
0:00:04.6]} 46. Re7# {[%clk 0:00:02.5]} 1-0